bitfinex-derivatives/quotes_BNBF0:USTF0_20250908
["timestamp","ask_amount","ask_price","bid_price","bid_amount"]
[1757328398180,0.19770088,881.85,880.57,0.76446038]
[1757328398385,0.19770088,881.85,880.57,3.30987858]
[1757328409490,1.0210031,882.05,880.57,3.30987858]
[1757328409894,0.19777503,881.54,880.57,3.30987858]
[1757328410092,1.0210031,882.05,880.57,3.30987858]
[1757328410403,0.19777503,881.3,880.57,3.30987858]
[1757328410696,1.0210031,882.05,880.57,3.30987858]
[1757328410896,0.19777503,881.12,880.57,3.30987858]
[1757328411092,1.0210031,882.02,880.57,3.30987858]
[1757328411297,1.0210031,882.01,880.57,3.30987858]
[1757328411592,0.19777503,880.99,880.57,3.30987858]
[1757328411793,1.0210031,882.01,880.57,3.30987858]
[1757328411991,0.19777728,880.89,880.57,3.30987858]
[1757328412396,1.0210031,882.01,880.57,3.30987858]
[1757328412596,0.19777672,880.82,880.57,3.30987858]
[1757328412792,1.0210031,882.01,880.57,3.30987858]
[1757328412993,1.0210031,882.02,880.57,3.30987858]
[1757328413197,0.19777728,880.76,880.57,3.30987858]
[1757328413397,1.0210031,882.02,880.57,3.30987858]
[1757328413594,0.19777672,880.72,880.57,3.30987858]
[1757328414099,1.0210031,882.03,880.57,3.30987858]
[1757328414398,0.19777559,880.69,880.57,3.30987858]
[1757328414700,0.19776267,881.67,880.58,3.30987858]
[1757328414898,0.19776267,881.67,880.59,3.30987858]
[1757328415198,0.19776267,881.67,880.71,3.30987858]
[1757328415497,0.19776267,881.67,880.74,3.30987858]
[1757328417796,0.19776267,881.67,880.8,3.30987858]
[1757328418197,0.19776267,881.67,880.81,3.30987858]
[1757328418395,0.19776267,881.67,880.82,3.30987858]
[1757328419500,0.19776267,881.67,880.83,1.78272268]
[1757328420202,0.19776267,881.67,880.83,3.30987858]
[1757328420503,0.19776267,881.67,880.9,3.30987858]
[1757328421197,0.19776267,881.67,880.89,3.30987858]
[1757328422199,0.19776267,881.67,880.87,1.78272268]
[1757328423199,0.19776267,881.67,880.76,0.76446038]
[1757328423799,0.19776267,881.67,880.77,0.76446038]
[1757328426407,0.19776267,881.67,880.76,0.76446038]
[1757328427106,0.19776267,881.67,880.76,1.78272268]
[1757328427308,0.19776267,881.67,880.74,1.78272268]
[1757328427604,0.19776267,881.67,880.74,3.30987858]
[1757328427806,0.19776267,881.67,880.7,3.30987858]
[1757328431206,0.19776267,881.67,880.71,3.30987858]
[1757328431608,0.19776267,881.67,880.72,3.30987858]
[1757328437414,0.19776267,881.67,880.73,3.30987858]
[1757328437720,0.19776267,881.67,880.81,3.30987858]
[1757328438012,0.19776267,881.67,880.82,3.30987858]
[1757328440416,0.19776267,881.67,880.83,3.30987858]
[1757328441217,0.19776267,881.67,880.86,3.30987858]
[1757328442114,0.19776267,881.67,880.88,3.30987858]
[1757328442414,0.19776267,881.67,880.87,3.30987858]
[1757328444420,0.19776267,881.67,880.87,1.78272268]
[1757328445117,0.19776267,881.67,880.87,3.30987858]
[1757328445616,0.19776267,881.67,880.88,3.30987858]
[1757328447721,0.19776267,881.67,880.87,1.78272268]
[1757328450418,0.19776267,881.67,880.86,1.78272268]
[1757328451224,0.19776267,881.67,880.87,0.76446038]
[1757328451423,0.19776267,881.67,880.87,1.78272268]
[1757328452419,0.19776267,881.67,880.87,3.30987858]
[1757328454026,0.19776267,881.67,880.86,3.30987858]
[1757328457930,0.19776267,881.67,880.85,3.30987858]
[1757328460533,0.19776267,881.67,880.81,3.30987858]
[1757328462136,0.19776267,881.67,880.82,3.30987858]
[1757328471446,0.19776267,881.67,880.82,1.78272268]
[1757328473554,0.19776267,881.67,880.83,1.78272268]
[1757328474048,0.19776267,881.67,880.87,1.78272268]
[1757328474348,0.19776267,881.67,880.88,1.78272268]
[1757328474549,0.19776267,881.67,880.94,1.78272268]
[1757328476653,0.19776267,881.67,880.94,3.30987858]
[1757328481856,0.19776267,881.67,880.98,1.78272268]
[1757328483358,0.19776267,881.67,881.09,1.78272268]
[1757328484260,0.19776267,881.67,881.09,1.77969125]
[1757328485457,0.19776267,881.67,881.19,1.77969125]
[1757328492065,0.19776267,881.67,881.19,3.30684715]
[1757328492962,0.19776267,881.67,881.19,1.77969125]
[1757328493167,0.19776267,881.67,881.25,1.77969125]
[1757328493461,0.19776267,881.67,881.37,0.76142895]
[1757328494161,0.19776267,881.67,881.38,0.76142895]
[1757328494361,0.19776267,881.67,881.39,0.76142895]
[1757328495965,0.19776267,881.67,881.38,0.76142895]
[1757328496163,0.19776267,881.67,881.33,0.76142895]
[1757328496366,0.19776267,881.67,881.29,1.77969125]
[1757328496765,0.19776267,881.67,881.25,1.77969125]
[1757328497363,0.19776267,881.67,881.24,1.77969125]
[1757328497867,0.19776267,881.67,881.25,1.77969125]
[1757328499167,0.19776267,881.67,881.24,1.77969125]
[1757328499463,0.19776267,881.67,880.23,2.5379779]
[1757328499464,0.19776267,881.67,881.21,1.77969125]
[1757328500167,0.19776267,881.67,881.22,1.77969125]
[1757328503866,0.19776267,881.67,881.22,3.30684715]
[1757328504171,0.19776267,881.67,881.22,1.77969125]
[1757328507674,0.19776267,881.67,881.23,1.77969125]
[1757328507873,0.19776267,881.67,881.25,1.77969125]
[1757328512576,0.19776267,881.67,881.25,3.30684715]
[1757328514477,0.19776267,881.67,881.25,1.77969125]
[1757328515677,0.19776267,881.67,881.25,3.30684715]
[1757328518580,0.19776267,881.67,881.24,1.77969125]
[1757328518783,0.19776267,881.67,881.21,1.77969125]
[1757328518982,0.19776267,881.67,881.18,1.77969125]
[1757328519185,0.19776267,881.67,881.19,1.77969125]
[1757328519686,0.19776267,881.67,881.17,1.77969125]
[1757328521482,0.19776267,881.67,881.14,1.77969125]
[1757328523286,0.19776267,881.67,881.14,0.76142895]
[1757328527090,0.19776267,881.67,881.17,0.76142895]
[1757328527790,0.19776267,881.67,881.18,0.76142895]
[1757328527991,0.19776267,881.67,881.18,1.77969125]
[1757328528193,0.19776267,881.67,881.18,1.77782788]
[1757328528694,0.19776267,881.67,881.19,1.77782788]
[1757328529794,0.19776267,881.67,881.18,1.77782788]
[1757328530393,0.19776267,881.67,881.18,3.30498378]
[1757328532094,0.19776267,881.67,881.16,3.30498378]
[1757328534398,0.19776267,881.67,881.14,3.30498378]
[1757328534599,0.19776267,881.67,881.12,3.30498378]
[1757328536700,0.19776267,881.67,881.12,1.77782788]
[1757328536999,0.19776267,881.67,881.09,1.77782788]
[1757328537500,0.19776267,881.67,881.1,1.77782788]
[1757328538096,0.19776267,881.67,881.11,1.77782788]
[1757328538697,0.19776267,881.67,881.01,1.5271559]
[1757328538698,0.19776267,881.67,881.16,3.30498378]
[1757328538895,0.19776267,881.67,881.17,3.30498378]
[1757328543506,0.19776267,881.67,881.28,1.77782788]
[1757328544408,0.19776267,881.67,879.79,2.5379779]
[1757328544409,0.19776267,881.67,881.29,1.77782788]
[1757328546812,0.19776267,881.67,881.3,1.77782788]
[1757328547410,0.19776267,881.67,881.3,1.78071206]
[1757328547910,0.19776267,881.67,881.32,1.78071206]
[1757328548110,0.19776267,881.67,881.32,3.30786796]
[1757328548404,0.19776267,881.67,881.32,1.78071206]
[1757328548810,0.19776267,881.67,881.33,3.30786796]
[1757328549407,0.19776267,881.67,881.38,3.30786796]
[1757328555912,0.19776267,881.67,881.39,3.30786796]
[1757328556216,0.19776267,881.67,881.38,3.30786796]
[1757328561222,0.19776267,881.67,881.39,3.30786796]
[1757328562719,0.19776267,881.67,881.4,3.30786796]
[1757328563320,0.19776267,881.67,881.48,1.78071206]
[1757328563520,0.19776267,881.67,879.61,5.0759559]
[1757328563521,0.19776267,881.67,881.5,1.78071206]
[1757328566725,0.19776267,881.67,881.49,1.78071206]
[1757328567022,0.19776267,881.67,881.5,1.78071206]
[1757328570633,0.19776267,881.67,881.49,1.78071206]
[1757328574436,0.19776267,881.67,881.49,3.30786796]
[1757328574636,0.19776267,881.67,881.49,1.78071206]
[1757328576639,0.19776267,881.67,881.49,3.30786796]
[1757328576839,0.19776267,881.67,881.43,3.30786796]
[1757328578934,0.19776267,881.67,881.42,3.30786796]
[1757328579239,0.19776267,881.67,881.32,3.30786796]
[1757328579540,0.19776267,881.67,881.3,3.30786796]
[1757328579939,0.19776267,881.67,881.26,3.30786796]
[1757328582845,0.19776267,881.67,881.27,3.30786796]
[1757328583044,0.19776267,881.67,881.31,3.30786796]
[1757328583244,0.19776267,881.67,881.39,3.30786796]
[1757328585544,0.19776267,881.67,881.43,3.30786796]
[1757328585842,0.19776267,881.67,881.43,1.78071206]
[1757328586244,0.19776267,881.67,881.43,3.30786796]
[1757328589645,0.19776267,881.67,881.47,3.30786796]
[1757328590145,0.19776267,881.67,881.46,3.30786796]
[1757328593352,0.19776267,881.67,881.6,1.78071206]
[1757328593549,0.19776267,881.67,881.61,1.78071206]
[1757328593753,0.19776267,881.67,881.61,0.76244976]
[1757328594155,0.19776267,881.67,881.61,1.78071206]
[1757328594655,0.19776267,881.67,881.6,1.78071206]
[1757328594957,0.19776267,881.67,881.61,0.76244976]
[1757328595156,0.19776267,881.67,881.6,1.78071206]
[1757328595353,0.19776267,881.67,881.61,1.78071206]
[1757328597258,0.19776267,881.67,881.62,1.78071206]
[1757328597555,0.19776267,881.67,881.63,1.78071206]
[1757328598756,0.19776267,881.67,881.62,1.78071206]
[1757328599657,0.19776267,881.67,881.63,1.78071206]
[1757328601957,0.19776267,881.67,881.62,1.78071206]
[1757328602153,1.0210031,883.49,881.62,1.78071206]
[1757328602354,0.19750956,881.67,881.62,1.78071206]
[1757328602754,1.0210031,883.47,881.62,1.78071206]
[1757328602954,1.0210031,883.44,881.62,1.78071206]
[1757328603156,1.0210031,883.36,881.62,1.78071206]
[1757328603458,1.0210031,883.28,881.62,1.78071206]
[1757328603657,1.0210031,883.27,881.62,1.78071206]
[1757328603858,0.19752358,882.87,881.62,1.78071206]
[1757328605660,0.19752358,882.87,881.61,1.5271559]
[1757328605661,0.19752358,882.87,881.61,3.30786796]
[1757328606057,0.19752358,882.87,881.54,0.76244976]
[1757328608857,0.19752358,882.87,881.57,1.78071206]
[1757328609363,0.19752358,882.87,881.56,1.78071206]
[1757328609560,0.19752358,882.87,881.57,1.78071206]
[1757328609860,0.19752358,882.87,881.58,1.78071206]
[1757328610064,0.19752358,882.87,881.6,1.78071206]
[1757328610561,0.19752358,882.87,881.59,1.78071206]
[1757328610961,0.19752358,882.87,881.57,1.78071206]
[1757328612465,0.19752358,882.87,881.54,1.78071206]
[1757328613863,0.19752358,882.87,881.55,1.78071206]
[1757328614963,0.19752358,882.87,881.58,1.78071206]
[1757328621971,0.19752358,882.87,881.58,3.30786796]
[1757328629577,0.19752358,882.87,881.58,1.78071206]
[1757328632191,0.19752358,882.87,881.58,1.0182623]
[1757328632388,0.19752358,882.87,881.61,1.77954208]
[1757328632688,0.19752358,882.87,881.64,1.77954208]
[1757328632887,0.19752358,882.87,881.69,1.77954208]
[1757328633189,0.19752358,882.87,881.7,1.77954208]
[1757328633591,0.19752358,882.87,881.68,1.77954208]
[1757328633792,0.19752358,882.87,881.69,1.77954208]
[1757328634196,0.19752358,882.87,881.68,1.77954208]
[1757328634490,0.19752358,882.87,881.69,1.77954208]
[1757328634889,0.19752358,882.87,881.68,1.77954208]
[1757328638395,0.19752358,882.87,881.67,1.77954208]
[1757328638598,0.19752358,882.87,881.7,1.77954208]
[1757328639000,0.19752358,882.87,881.77,1.77954208]
[1757328640002,0.19752358,882.87,881.78,0.76127978]
[1757328640403,0.19752358,882.87,881.78,1.77954208]
[1757328640900,0.19752358,882.87,881.8,1.77954208]
[1757328641504,0.19752358,882.87,881.79,1.77954208]
[1757328641705,0.19752358,882.87,881.8,1.77954208]
[1757328642504,0.19752358,882.87,881.6,1.5271559]
[1757328642505,0.19752358,882.87,881.81,1.77954208]
[1757328643402,0.19752358,882.87,881.96,1.77954208]
[1757328644507,0.19752358,882.87,881.97,1.77954208]
[1757328646109,0.19752358,882.87,881.95,1.77954208]
[1757328647609,0.19752358,882.87,881.95,3.30669798]
[1757328648112,0.19752358,882.87,881.89,3.30669798]
[1757328649711,0.19752358,882.87,881.89,1.77954208]
[1757328650812,0.19752358,882.87,881.86,3.30669798]
[1757328655113,0.19752358,882.87,881.86,1.77954208]
[1757328655417,0.19752358,882.87,881.86,3.30669798]
[1757328656318,0.19752358,882.87,881.86,1.77954208]
[1757328660621,0.19752358,882.87,881.86,1.0182623]
[1757328660921,0.19752358,882.87,881.86,1.77790705]
[1757328663421,0.19752358,882.87,881.91,1.77790705]
[1757328664619,0.19752358,882.87,881.99,1.77790705]
[1757328668923,0.19752358,882.87,881.99,3.30506295]
[1757328669724,0.19752358,882.87,881.99,1.77790705]
[1757328681234,0.19752358,882.87,881.71,0.75964475]
[1757328681636,0.19752358,882.87,881.51,1.0182623]
[1757328681637,0.19752358,882.87,881.7,0.75964475]
[1757328682037,0.19752358,882.87,881.71,0.75964475]
[1757328685940,0.19752358,882.87,881.71,1.77790705]
[1757328687141,0.19752358,882.87,881.71,0.75964475]
[1757328687342,0.19752358,882.87,881.63,0.75964475]
[1757328687641,0.19752358,882.87,881.61,0.75964475]
[1757328692346,0.19752358,882.87,881.61,1.77790705]
[1757328693346,0.19752358,882.87,881.63,0.75964475]
[1757328693544,0.19752358,882.87,881.7,0.75964475]
[1757328693946,0.19752358,882.87,881.71,0.75964475]
[1757328699054,0.19752358,882.87,881.71,1.77790705]
[1757328700652,0.19752358,882.87,881.72,0.75964475]
[1757328701757,0.19752358,882.87,881.72,1.77790705]
[1757328703457,0.19752358,882.87,881.92,3.30506295]
[1757328703856,0.19752358,882.87,881.95,1.77790705]
[1757328709758,0.19752358,882.87,881.94,1.77790705]
[1757328710661,0.19752358,882.87,881.92,1.77790705]
[1757328710859,0.19752358,882.87,881.83,3.30506295]
[1757328711961,0.19752358,882.87,881.83,1.77790705]
[1757328712865,0.19752358,882.87,881.83,3.30506295]
[1757328713363,0.19752358,882.87,881.83,1.77790705]
[1757328719368,0.19752358,882.87,881.82,1.77790705]
[1757328719872,0.19752358,882.87,881.8,3.30506295]
[1757328720474,0.19752358,882.87,881.74,3.30506295]
[1757328720770,0.19752358,882.87,881.75,3.30506295]
[1757328721070,0.19752358,882.87,881.74,3.30506295]
[1757328721271,0.19752358,882.87,881.73,3.30506295]
[1757328721467,0.19752358,882.87,881.72,3.30506295]
[1757328724774,0.19752358,882.87,881.72,1.77790705]
[1757328725369,0.19752358,882.87,881.72,0.75964475]
[1757328725572,0.19752358,882.87,881.71,1.77790705]
[1757328727170,0.19752358,882.87,881.63,1.77790705]
[1757328728776,0.19752358,882.87,881.62,1.77790705]
[1757328729871,0.19752358,882.87,881.63,1.77790705]
[1757328734675,0.19752358,882.87,881.63,3.30506295]
[1757328740082,0.19752358,882.87,881.62,3.30506295]
[1757328740479,0.19752358,882.87,881.61,3.30506295]
[1757328740980,0.19752358,882.87,881.6,1.77790705]
[1757328744689,0.19752358,882.87,881.56,1.77790705]
[1757328746190,0.19752358,882.87,881.55,1.77790705]
[1757328747391,0.19752358,882.87,881.53,1.77790705]
[1757328748388,0.19752358,882.87,881.51,1.77790705]
[1757328748693,0.19752358,882.87,881.24,1.5271559]
[1757328748694,0.19752358,882.87,881.36,3.30506295]
[1757328748989,0.19752358,882.87,881.33,3.30506295]
[1757328749292,0.19752358,882.87,881.33,1.77790705]
[1757328762902,0.19752358,882.87,881.3,1.77790705]
[1757328765003,0.19752358,882.87,881.23,1.77790705]
[1757328768210,0.19752358,882.87,881.24,1.77790705]
[1757328769210,0.19752358,882.87,881.23,1.77790705]
[1757328771210,0.19752358,882.87,881.24,1.77790705]
[1757328771710,0.19752358,882.87,881.23,1.77790705]
[1757328776413,0.19752358,882.87,881.24,1.77790705]
[1757328778015,0.19752358,882.87,881.23,1.77790705]
[1757328778513,0.19752358,882.87,881.24,1.77790705]
[1757328781318,0.19752358,882.87,881.23,1.77790705]
[1757328781919,0.19752358,882.87,881.12,1.5271559]
[1757328781920,0.19752358,882.87,881.24,1.77790705]
[1757328782117,0.19752358,882.87,881.23,1.77790705]
[1757328783016,0.19752358,882.87,881.22,1.77790705]
[1757328783619,0.19752358,882.87,881.21,1.77790705]
[1757328784924,0.19752358,882.87,881.14,1.77790705]
[1757328785124,0.19752358,882.87,881.13,1.77790705]
[1757328786621,1.0210031,882.77,881.11,3.30506295]
[1757328788326,1.0210031,882.78,881.11,3.30506295]
[1757328788525,1.0210031,882.76,881.11,3.30506295]
[1757328788724,1.0210031,882.76,881.1,3.30506295]
[1757328788927,1.0210031,882.61,880.96,3.30506295]
[1757328789325,1.0210031,882.62,880.96,3.30506295]
[1757328789926,1.0210031,882.59,880.91,3.30506295]
[1757328790430,1.0210031,882.41,880.51,1.77790705]
[1757328790627,1.0210031,882.3,880.52,1.77790705]
[1757328791130,1.0210031,882.43,880.53,1.77790705]
[1757328791333,1.0210031,882.47,880.53,1.77790705]
[1757328791731,1.0210031,882.51,880.53,0.75964475]
[1757328792232,1.0210031,882.56,880.53,0.75964475]
[1757328792526,1.0210031,882.68,880.65,0.75964475]
[1757328792736,1.0210031,882.68,880.66,0.75964475]
[1757328792925,0.19752358,882.87,880.67,0.75964475]
[1757328794331,0.19752358,882.87,880.02,1.5271559]
[1757328794332,0.19752358,882.87,880.66,0.75964475]
[1757328795831,1.0210031,882.79,880.66,0.75964475]
[1757328796127,1.0210031,882.78,880.64,0.75964475]
[1757328796329,1.0210031,882.79,880.64,0.75964475]
[1757328797026,1.0210031,882.68,880.64,0.75964475]
[1757328797227,1.0210031,882.53,880.54,0.75964475]
[1757328797528,1.0210031,882.51,880.51,0.75964475]
[1757328797827,1.0210031,882.32,880.51,1.77790705]
[1757328798031,1.0210031,882.33,880.51,1.77790705]
[1757328798232,1.0210031,882.35,880.51,1.77790705]
[1757328799233,1.0210031,882.36,880.51,1.77790705]
[1757328799730,1.0210031,882.4,880.51,1.77790705]
[1757328800033,1.0210031,882.34,880.47,1.77790705]
[1757328800233,1.0210031,882.33,880.43,1.77790705]
[1757328801332,1.0210031,882.34,880.43,1.77790705]
[1757328802330,1.0210031,882.36,880.43,1.77790705]
[1757328802933,1.0210031,882.36,880.41,1.77790705]
[1757328803131,1.0210031,882.34,880.4,1.77790705]
[1757328803333,1.0210031,882.3,880.33,1.77790705]
[1757328803532,1.0210031,882.33,880.33,1.77790705]
[1757328804336,0.19779751,881.84,880.33,1.77790705]
[1757328804731,0.19779751,881.84,880.34,0.75964475]
[1757328808138,0.19779751,881.84,879.24,0.1977829]
[1757328808139,0.19779751,881.84,880.33,0.75964475]
[1757328811239,0.19779751,881.84,880.35,0.75964475]
[1757328811443,0.19779751,881.84,880.34,0.75964475]
[1757328812742,0.19779751,881.84,880.35,0.75964475]
[1757328815142,0.19779751,881.84,880.42,0.75964475]
[1757328816542,0.19779751,881.84,880.41,0.75964475]
[1757328817646,0.19779751,881.84,880.42,0.75964475]
[1757328818045,0.19779751,881.84,880.41,0.75964475]
[1757328818748,0.19779751,881.84,880.43,0.75964475]
[1757328819349,0.19779751,881.84,880.43,1.77790705]
[1757328819549,0.19779751,881.84,880.51,0.75964475]
[1757328820145,0.19779751,881.84,880.52,0.75964475]
[1757328820345,0.19779751,881.84,880.71,0.75964475]
[1757328821249,0.19779751,881.84,880.7,0.75964475]
[1757328821449,0.19779751,881.84,880.69,0.75964475]
[1757328821752,0.19779751,881.84,880.66,0.75964475]
[1757328821950,0.19779751,881.84,880.67,0.75964475]
[1757328822150,0.19779751,881.84,880.66,0.75964475]
[1757328822351,0.19779751,881.84,880.6,0.75964475]
[1757328823348,0.19779751,881.84,880.61,0.75964475]
[1757328824152,0.19779751,881.84,880.4,1.0182623]
[1757328824448,0.19779751,881.84,880.61,0.75693006]
[1757328824954,0.19779751,881.84,880.58,0.75693006]
[1757328829852,0.19779751,881.84,880.52,0.75693006]
[1757328830052,0.19779751,881.84,880.49,0.75693006]
[1757328833258,0.19779751,881.84,880.49,1.77519236]
[1757328833456,0.19779751,881.84,880.45,0.75693006]
[1757328834454,0.19779751,881.84,880.42,1.77519236]
[1757328834755,0.19779751,881.84,880.42,0.75693006]
[1757328835359,0.19779751,881.84,880.42,1.77519236]
[1757328836858,0.19779751,881.84,880.48,0.75693006]
[1757328838359,0.19779751,881.84,880.14,1.0182623]
[1757328838561,0.19779751,881.84,880.48,0.7597074]
[1757328839260,0.19779751,881.84,880.48,0.75998311]
[1757328843159,0.19779751,881.84,880.48,1.77824541]
[1757328843968,0.19779751,881.84,880.43,1.77824541]
[1757328844164,0.19779751,881.84,880.41,1.77930844]
[1757328848764,0.19779751,881.84,880.39,1.77930844]
[1757328848963,0.19779751,881.84,880.35,1.77930844]
[1757328849367,0.19779751,881.84,880.18,1.77930844]
[1757328850166,0.19779751,881.84,880.0,1.5271559]
[1757328850167,0.19779751,881.84,880.15,1.77930844]
[1757328850366,0.19779751,881.84,880.1,1.77930844]
[1757328850668,1.0210031,881.73,880.1,3.30646434]
[1757328850866,1.0210031,881.6,880.03,3.30646434]
[1757328851168,0.19779751,881.84,879.4,2.5379779]
[1757328851169,1.0210031,881.65,880.0,3.30646434]
[1757328851369,1.0210031,881.7,879.94,1.77930844]
[1757328851566,1.0210031,881.7,879.95,1.77930844]
[1757328851970,1.0210031,881.71,879.96,1.77930844]
[1757328852467,1.0210031,881.74,879.96,1.77930844]
[1757328853070,1.0210031,881.73,879.95,1.77930844]
[1757328853366,1.0210031,881.74,879.95,1.77930844]
[1757328854567,1.0210031,881.83,879.95,1.77930844]
[1757328854767,1.0210031,881.82,879.95,1.77930844]
[1757328855267,1.0210031,881.83,879.95,1.77930844]
[1757328856268,1.21880061,881.84,879.95,1.77930844]
[1757328856567,1.0210031,881.82,879.95,1.77930844]
[1757328857467,1.21880061,881.84,879.95,1.77930844]
[1757328858375,0.19779751,881.84,879.95,1.77930844]
[1757328864575,1.0210031,881.8,879.95,1.77930844]
[1757328864778,1.0210031,881.78,879.95,1.77930844]
[1757328864978,1.0210031,881.81,879.95,1.77930844]
[1757328865179,0.19779751,881.84,879.95,1.77930844]
[1757328869880,0.19779751,881.84,879.95,0.76104614]
[1757328875086,0.19779751,881.84,879.95,1.77930844]
[1757328876690,0.19779751,881.84,879.93,0.76104614]
[1757328877489,0.19779751,881.84,879.96,0.76104614]
[1757328878186,0.19779751,881.84,880.03,0.76104614]
[1757328878385,0.19779751,881.84,880.1,0.76104614]
[1757328878788,0.19779751,881.84,880.12,0.76104614]
[1757328879489,0.19779751,881.84,880.18,1.77930844]
[1757328879786,0.19779751,881.84,880.22,1.77930844]
[1757328881285,0.19779751,881.84,880.23,1.77930844]
[1757328881691,0.19779751,881.84,880.22,1.77930844]
[1757328881886,0.19779751,881.84,880.3,1.77930844]
[1757328882787,0.19779751,881.84,880.3,0.76104614]
[1757328884386,0.19779751,881.84,880.3,1.77930844]
[1757328884591,0.19779751,881.84,880.29,1.77930844]
[1757328884989,0.19779751,881.84,880.29,0.76104614]
[1757328886188,0.19779751,881.84,880.3,0.76104614]
[1757328886384,0.19779751,881.84,880.29,1.77930844]
[1757328888290,0.19779751,881.84,880.28,1.77930844]
[1757328888693,0.19779751,881.84,880.28,0.76104614]
[1757328890892,0.19779751,881.84,880.29,0.76104614]
[1757328891395,0.19779751,881.84,880.28,0.76104614]
[1757328891604,0.19779751,881.84,880.3,0.76104614]
[1757328892002,0.19779751,881.84,880.32,0.76104614]
[1757328892402,0.19779751,881.84,880.32,1.77930844]
[1757328896304,0.19779751,881.84,880.31,1.77930844]
[1757328897206,0.19779751,881.84,880.32,1.77930844]
[1757328897505,0.19779751,881.84,880.39,1.77930844]
[1757328897705,0.19779751,881.84,880.42,1.77930844]
[1757328902811,0.19779751,881.84,880.5,3.30646434]
[1757328903111,0.19779751,881.84,880.6,3.30646434]
[1757328903316,0.19779751,881.84,880.62,3.30646434]
[1757328903816,0.19779751,881.84,880.62,1.77930844]
[1757328904315,0.19779751,881.84,880.69,1.77930844]
[1757328906820,0.19779751,881.84,880.7,1.77930844]
[1757328907022,0.19779751,881.84,880.72,1.77930844]
[1757328907617,0.19779751,881.84,880.56,1.5271559]
[1757328907618,0.19779751,881.84,880.73,1.77930844]
[1757328907919,0.19779751,881.84,880.7,0.76104614]
[1757328908522,0.19779751,881.84,880.69,0.76104614]
[1757328908921,0.19779751,881.84,880.63,1.0182623]
[1757328908922,0.19779751,881.84,880.68,0.76104614]
[1757328909317,0.19779751,881.84,880.69,0.76104614]
[1757328913226,0.19779751,881.84,880.7,1.77930844]
[1757328913625,0.19779751,881.84,880.71,1.77930844]
[1757328913922,0.19779751,881.84,880.73,1.77930844]
[1757328919032,0.19779751,881.84,880.78,0.76104614]
[1757328919933,0.19779751,881.84,880.79,0.76104614]
[1757328920129,0.19779751,881.84,880.79,1.77930844]
[1757328920830,0.19779751,881.84,880.79,0.76104614]
[1757328921632,0.19779751,881.84,880.82,0.76104614]
[1757328923831,0.19779751,881.84,880.81,0.76104614]
[1757328925936,0.19779751,881.84,880.82,0.76104614]
[1757328929436,0.19779751,881.84,880.84,0.76104614]
[1757328929638,0.19779751,881.84,880.93,0.76104614]
[1757328929838,0.19779751,881.84,880.95,0.76104614]
[1757328930238,0.19779751,881.84,880.95,1.77930844]
[1757328930535,0.19779751,881.84,880.98,1.77930844]
[1757328931838,0.19779751,881.84,880.99,1.77930844]
[1757328932038,0.19779751,881.84,881.01,1.77930844]
[1757328933643,0.19779751,881.84,880.99,0.76104614]
[1757328933844,0.19779751,881.84,880.94,0.76104614]
[1757328934138,0.19779751,881.84,880.95,0.76104614]
[1757328934337,0.19779751,881.84,880.95,1.77930844]
[1757328934841,0.19779751,881.84,880.95,0.76104614]
[1757328936538,0.19779751,881.84,880.94,0.76104614]
[1757328936842,0.19779751,881.84,880.93,0.76104614]
[1757328937538,0.19779751,881.84,880.86,0.76104614]
[1757328939343,0.19779751,881.84,880.79,0.76104614]
[1757328942041,0.19779751,881.84,880.8,0.76104614]
[1757328944055,0.19779751,881.84,880.79,0.76104614]
[1757328944250,0.19779751,881.84,880.79,1.77930844]
[1757328944552,0.19779751,881.84,880.76,1.77930844]
[1757328946553,0.19779751,881.84,880.77,1.77930844]
[1757328948254,0.19779751,881.84,880.76,1.77930844]
[1757328956364,0.19779751,881.84,880.76,3.30646434]
[1757328959969,0.19779751,881.84,880.72,3.30646434]
[1757328962068,0.19779751,881.84,880.71,3.30646434]
[1757328962268,0.19779751,881.84,880.7,3.30646434]
[1757328962468,0.19779751,881.84,880.71,3.30646434]
[1757328962970,0.19779751,881.84,880.7,3.30646434]
[1757328963870,0.19779751,881.84,880.71,3.30646434]
[1757328964974,0.19779751,881.84,880.69,3.30646434]
[1757328968275,0.19779751,881.84,880.66,1.77930844]
[1757328968480,0.19779751,881.84,880.65,1.77930844]
[1757328968880,0.19779751,881.84,880.6,1.77930844]
[1757328969175,0.19779751,881.84,880.51,1.77930844]
[1757328970078,0.19779751,881.84,880.5,1.77930844]
[1757328970678,0.19779751,881.84,880.36,0.76104614]
[1757328971082,0.19779751,881.84,880.36,1.77930844]
[1757328971386,0.19779751,881.84,880.36,0.76104614]
[1757328972684,0.19779751,881.84,880.4,1.77930844]
[1757328972879,0.19779751,881.84,880.49,1.77930844]
[1757328976685,0.19779751,881.84,880.49,3.30646434]
[1757328976987,0.19779751,881.84,880.54,3.30646434]
[1757328977485,0.19779751,881.84,880.58,3.30646434]
[1757328978793,0.19779751,881.84,880.59,3.30646434]
[1757328978993,0.19779751,881.84,880.61,3.30646434]
[1757328979491,0.19779751,881.84,880.64,3.30646434]
[1757328979694,0.19779751,881.84,880.57,3.30646434]
[1757328979894,0.19779751,881.84,880.58,3.30646434]
[1757328980794,0.19779751,881.84,880.58,1.77930844]
[1757328981596,0.19779751,881.84,880.47,1.77930844]
[1757328981792,0.19779751,881.84,880.42,1.77930844]